bitfinex-derivatives/quotes_SOLF0:USTF0_20241217
["timestamp","ask_amount","ask_price","bid_price","bid_amount"]
[1734433552135,6.85121138,222.6,222.52,2.247]
[1734433552435,6.85121138,222.6,222.52,4.387]
[1734433552629,2.2466,222.57,222.52,4.387]
[1734433553828,2.2466,222.57,222.53,2.2469]
[1734433554538,1.5355,222.6,222.52,2.14]
[1734433554733,1.5355,222.6,222.55,2.2467]
[1734433555640,3.7818,222.6,222.55,2.2467]
[1734433556236,2.2464,222.59,222.55,2.2467]
[1734433559236,322.26049095,222.87,222.52,2.14]
[1734433559433,5.48186977,222.65,222.57,2.2465]
[1734433559637,5.48186977,222.65,222.58,2.14]
[1734433559834,1.6039,222.64,222.58,2.14]
[1734433560043,3.1021,222.64,222.58,2.14]
[1734433560237,2.246,222.63,222.58,4.3864]
[1734433560743,3.1021,222.64,222.58,4.3864]
[1734433561584,2.2461,222.62,222.58,4.3864]
[1734433561842,10.6676733,222.63,222.56,2.14]
[1734433562041,12.1747733,222.63,222.54,2.14]
[1734433562541,12.1747733,222.63,222.54,4.3868]
[1734433562741,2.2464,222.59,222.54,4.3868]
[1734433563143,12.1747733,222.63,222.54,2.14]
[1734433563338,3.7531,222.63,222.56,2.2466]
[1734433563542,1.5071,222.63,222.54,2.14]
[1734433563939,3.7531,222.63,222.54,2.14]
[1734433564435,3.7531,222.63,222.54,12.8076733]
[1734433564638,2.246,222.63,222.54,12.8076733]
[1734433565245,3.1021,222.64,222.54,12.8076733]
[1734433565440,2.14,222.63,222.37,6.21121128]
[1734433565642,10.6676733,222.51,222.38,4.6937046]
[1734433565850,10.6676733,222.51,222.41,5.44204233]
[1734433566045,10.6676733,222.51,222.42,4.6937046]
[1734433566046,1.518,222.5,222.42,4.6937046]
[1734433566339,2.2477,222.46,222.43,4.6937046]
[1734433566547,2.2477,222.46,222.42,2.2481]
[1734433567141,2.2476,222.47,222.42,2.2481]
[1734433567745,2.2475,222.48,222.44,2.2479]
[1734433568048,1.518,222.5,222.44,2.14]
[1734433568448,2.2474,222.49,222.45,2.2477]
[1734433569350,1.518,222.5,222.44,2.14]
[1734433569541,3.0103,222.53,222.44,2.14]
[1734433569947,5.2573,222.53,222.44,2.14]
[1734433570547,2.2471,222.52,222.47,2.2475]
[1734433570946,2.2471,222.52,222.44,2.14]
[1734433571148,2.2471,222.52,222.48,2.2474]
[1734433572550,3.8034,222.53,222.49,2.2473]
[1734433572751,1.5564,222.53,222.44,2.14]
[1734433572951,1.5564,222.53,222.45,4.70845041]
[1734433573147,10.6676733,222.57,222.46,4.70845041]
[1734433573347,10.6676733,222.57,222.47,4.70845041]
[1734433573550,10.6676733,222.57,222.48,4.70845041]
[1734433573845,10.6676733,222.57,222.49,6.85005288]
[1734433574051,10.6676733,222.57,222.5,4.71005288]
[1734433574245,2.2468,222.55,222.51,2.2471]
[1734433574749,10.6676733,222.57,222.49,2.14]
[1734433574949,10.6676733,222.57,222.5,4.71116904]
[1734433575149,10.6676733,222.57,222.51,4.71198072]
[1734433575351,10.6676733,222.57,222.49,2.14]
[1734433575549,12.8076733,222.6,222.5,4.71224778]
[1734433575749,12.8076733,222.6,222.51,4.71224778]
[1734433575950,12.8076733,222.6,222.49,2.14]
[1734433576153,10.6676733,222.6,222.5,4.7122597]
[1734433576352,10.6676733,222.6,222.51,4.7122597]
[1734433576551,2.2466,222.57,222.53,2.2469]
[1734433577149,2.2467,222.56,222.52,2.247]
[1734433577755,10.6676733,222.57,222.49,2.14]
[1734433578146,2.2471,222.52,222.49,2.14]
[1734433578454,2.2471,222.52,222.47,2.2475]
[1734433578653,12.8076733,222.57,222.43,10.6676733]
[1734433578856,10.6676733,222.54,222.44,4.71269159]
[1734433579055,2.14,222.57,222.45,4.71269159]
[1734433579056,10.6676733,222.51,222.45,4.71269159]
[1734433579354,2.2477,222.46,222.42,2.14]
[1734433579553,2.2477,222.46,222.43,4.71216578]
[1734433579754,2.2477,222.46,222.41,5.44204233]
[1734433579950,2.2477,222.46,222.42,6.85246564]
[1734433580150,2.2477,222.46,222.42,2.14]
[1734433580552,2.2477,222.46,222.42,4.388]
[1734433580754,2.2477,222.46,222.42,2.248]
[1734433581249,10.6676733,222.45,222.35,0.15949]
[1734433581456,1.5727,222.44,222.36,4.71013057]
[1734433581648,2.2482,222.42,222.37,6.95873057]
[1734433581854,2.2482,222.42,222.37,2.2486]
[1734433582249,2.2482,222.41,222.36,2.2487]
[1734433582551,10.6676733,222.42,222.35,0.15949]
[1734433582951,1.4514,222.43,222.35,0.15949]
[1734433583549,1.4514,222.43,222.4,2.2483]
[1734433583751,1.5727,222.44,222.39,2.14]
[1734433583957,1.5727,222.44,222.35,0.15949]
[1734433584257,2.2482,222.41,222.37,2.2485]
[1734433584557,1.5727,222.44,222.37,2.2485]
[1734433584757,1.5727,222.44,222.36,2.14]
[1734433585154,5.1567,222.5,222.37,4.70606283]
[1734433585155,3.0167,222.5,222.37,4.70606283]
[1734433585351,2.2477,222.46,222.4,2.2482]
[1734433585656,2.2477,222.46,222.41,2.14]
[1734433585852,1.5041,222.49,222.43,2.2479]
[1734433585853,3.7516,222.49,222.43,2.2479]
[1734433586060,1.5041,222.49,222.41,2.14]
[1734433586955,1.5041,222.49,222.41,12.8076733]
[1734433587271,12.8076733,222.57,222.42,4.70595076]
[1734433587560,10.6676733,222.57,222.43,4.70595076]
[1734433587760,2.247,222.53,222.44,4.70595076]
[1734433587957,2.247,222.53,222.41,12.8076733]
[1734433588159,10.6676733,222.54,222.42,4.70589893]
[1734433588359,2.2473,222.5,222.46,2.2476]
[1734433588559,2.2473,222.5,222.46,4.3876]
[1734433588956,2.2472,222.51,222.47,2.2475]
[1734433590264,2.2472,222.51,222.46,2.14]
[1734433591059,1.5726,222.53,222.46,2.14]
[1734433591466,12.2478733,222.6,222.47,15.37879606]
[1734433591667,12.2478733,222.6,222.48,4.71112276]
[1734433591862,12.2478733,222.6,222.47,10.6676733]
[1734433592058,2.2465,222.58,222.53,2.2469]
[1734433592361,1.5767,222.62,222.53,2.14]
[1734433592765,1.5767,222.62,222.57,2.2465]
[1734433592766,2.2462,222.61,222.57,2.2465]
[1734433592966,2.2462,222.61,222.53,2.14]
[1734433593163,2.2462,222.61,222.54,4.71099813]
[1734433593367,2.2462,222.61,222.53,2.14]
[1734433594869,2.2463,222.59,222.55,2.2467]
[1734433595070,2.2463,222.59,222.53,2.14]
[1734433595665,2.2468,222.55,222.5,2.2472]
[1734433595869,10.6676733,222.6,222.51,2.14]
[1734433596276,10.6676733,222.6,222.51,4.3872]
[1734433596471,10.6676733,222.6,222.51,2.14]
[1734433597477,2.2466,222.57,222.52,2.247]
[1734433598577,3.7167,222.62,222.51,12.8076733]
[1734433598578,1.5767,222.62,222.51,12.8076733]
[1734433598885,1.5767,222.62,222.52,4.7092338]
[1734433599080,1.5767,222.62,222.51,12.8076733]
[1734433599081,1.5767,222.62,222.54,2.2468]
[1734433599383,1.5767,222.62,222.51,12.8076733]
[1734433599677,3.8228,222.62,222.58,2.2464]
[1734433599868,3.8228,222.62,222.57,2.14]
[1734433599869,1.5767,222.62,222.57,2.14]
[1734433600068,1.5767,222.62,222.58,2.14]
[1734433600879,1.5637,222.63,222.58,2.14]
[1734433601083,1.4877,222.67,222.6,2.2462]
[1734433601380,1.4877,222.67,222.58,2.14]
[1734433603076,10.6676733,222.72,222.64,2.2458]
[1734433603375,1.5789,222.72,222.63,2.14]
[1734433603583,1.5789,222.72,222.66,2.2456]
[1734433603771,1.5789,222.72,222.63,2.14]
[1734433603977,1.5789,222.72,222.64,2.14]
[1734433604277,12.2465733,222.72,222.64,4.3858]
[1734433605383,2.2453,222.7,222.64,4.3858]
[1734433605584,12.2465733,222.72,222.66,2.2456]
[1734433606082,2.2451,222.71,222.66,2.2456]
[1734433606278,13.7115733,222.75,222.68,2.2454]
[1734433606475,13.7115733,222.75,222.44,6.7435]
[1734433606675,2.2462,222.61,222.54,5.50048259]
[1734433606879,10.6676733,222.64,222.55,4.69749156]
[1734433607179,4.5396,222.63,222.54,2.2468]
[1734433607387,2.2465,222.58,222.52,2.14]
[1734433607779,2.2465,222.58,222.53,2.2469]
[1734433608078,4.5396,222.63,222.51,2.14]
[1734433608280,4.5396,222.63,222.58,2.2464]
[1734433609480,6.7856,222.63,222.58,2.2464]
[1734433610377,1.4542,222.63,222.62,2.246]
[1734433610578,1.5165,222.69,222.57,2.14]
[1734433612187,2.2457,222.66,222.62,2.246]
[1734433612386,1.5165,222.69,222.62,2.14]
[1734433612684,3.7619,222.69,222.64,2.2458]
[1734433612884,1.5165,222.69,222.64,2.2458]
[1734433613884,2.2455,222.68,222.62,4.3859]
[1734433614482,2.2455,222.68,222.63,2.2459]
[1734433614680,1.5165,222.69,222.62,2.14]
[1734433614879,3.7619,222.69,222.62,2.14]
[1734433615688,1.5165,222.69,222.62,2.14]
[1734433615991,1.5165,222.69,222.55,17.06003395]
[1734433616192,3.6565,222.69,222.56,2.14]
[1734433616381,3.6565,222.69,222.6,2.2462]
[1734433616382,2.2458,222.65,222.6,2.2462]
[1734433617390,2.246,222.63,222.58,2.2464]
[1734433617580,1.4986,222.64,222.58,2.2464]
[1734433617782,1.4986,222.64,222.56,2.14]
[1734433618185,3.7445,222.64,222.6,2.2462]
[1734433618891,1.4986,222.64,222.56,2.14]
[1734433619489,1.4986,222.64,222.6,2.2462]
[1734433620194,1.4986,222.64,222.56,2.14]
[1734433620393,3.7445,222.64,222.56,2.14]
[1734433620583,1.4986,222.64,222.56,2.14]
[1734433620890,3.7445,222.64,222.6,2.2462]
[1734433621885,1.4986,222.64,222.56,2.14]
[1734433622090,1.4986,222.64,222.62,2.246]
[1734433623589,3.7445,222.64,222.6,2.2462]
[1734433623787,1.4986,222.64,222.51,17.06003395]
[1734433623990,1.5293,222.63,222.52,6.83261358]
[1734433624194,2.2464,222.59,222.54,2.2468]
[1734433624392,2.2464,222.59,222.55,4.69261358]
[1734433624591,2.2464,222.59,222.54,2.2468]
[1734433624790,2.2465,222.58,222.52,2.14]
[1734433625693,18.58933395,222.63,222.46,17.06003395]
[1734433625893,18.58933395,222.63,222.47,6.83540106]
[1734433626087,17.06003395,222.59,222.46,2.14]
[1734433626293,2.2473,222.5,222.46,2.14]
[1734433626590,3.5913,222.58,222.46,2.14]
[1734433626996,3.5913,222.58,222.44,2.14]
[1734433627689,2.2471,222.52,222.46,2.2476]
[1734433628693,2.2471,222.52,222.44,2.14]
[1734433628900,2.2471,222.52,222.47,2.2476]
[1734433629393,2.2474,222.49,222.44,2.14]
[1734433629599,1.5522,222.51,222.44,2.14]
[1734433630300,1.5522,222.51,222.46,2.2477]
[1734433631400,3.7994,222.51,222.46,2.2477]
[1734433632797,2.2477,222.46,222.41,2.2481]
[1734433633001,2.2477,222.46,222.42,4.71394006]
[1734433633203,2.2477,222.46,222.43,4.71394006]
[1734433633503,2.2477,222.46,222.44,4.71394006]
[1734433633699,1.5522,222.51,222.39,10.67404876]
[1734433634001,2.2474,222.49,222.4,4.71540305]
[1734433634297,2.2474,222.49,222.41,4.71540305]
[1734433634501,2.2474,222.49,222.42,4.71540305]
[1734433634698,2.2474,222.49,222.43,4.71540305]
[1734433634899,2.2476,222.47,222.42,2.248]
[1734433635100,2.2476,222.47,222.43,4.71663442]
[1734433635301,2.2476,222.47,222.44,4.71663442]
[1734433635501,2.2476,222.47,222.4,2.14]
[1734433635702,2.2476,222.47,222.41,4.71607627]
[1734433635903,2.2475,222.48,222.44,2.2479]
[1734433636400,1.5522,222.51,222.4,2.14]
[1734433636605,2.2475,222.48,222.41,4.71460059]
[1734433636801,2.2475,222.48,222.42,4.71460059]
[1734433637099,2.2475,222.48,222.43,4.71460059]
[1734433637403,2.2475,222.48,222.4,2.14]
[1734433637404,1.5522,222.51,222.45,10.67404876]
[1734433637604,1.4994,222.54,222.46,4.71460059]
[1734433637806,3.7463,222.54,222.45,12.81404876]
[1734433638107,3.7463,222.54,222.46,4.71181783]
[1734433638304,3.7463,222.54,222.45,12.81404876]
[1734433638506,3.7463,222.54,222.46,4.71057594]
[1734433638806,3.7463,222.54,222.45,12.81404876]
[1734433639003,3.7463,222.54,222.46,4.7100391]
[1734433639310,3.7463,222.54,222.45,12.81404876]
[1734433639499,2.247,222.53,222.45,12.81404876]
[1734433639705,1.4994,222.54,222.45,12.81404876]
[1734433640205,2.247,222.53,222.49,2.2473]
[1734433640804,3.6069,222.57,222.45,12.81404876]
[1734433640999,1.4669,222.57,222.48,10.67404876]
[1734433641304,1.4503,222.6,222.48,10.67404876]
[1734433641509,3.6966,222.6,222.48,10.67404876]
[1734433641713,3.6966,222.6,222.51,10.67404876]
[1734433641901,1.4503,222.6,222.52,2.14]
[1734433642812,2.2464,222.59,222.55,2.2467]
[1734433643112,12.81404876,222.62,222.52,2.14]
[1734433643607,10.67404876,222.62,222.52,2.14]
[1734433643909,2.2463,222.6,222.55,2.2468]
[1734433644613,10.67404876,222.62,222.55,2.2468]
[1734433644806,2.2464,222.59,222.55,2.2468]
[1734433645302,10.67404876,222.62,222.55,2.2468]
[1734433645504,2.2463,222.6,222.55,2.2468]
[1734433648007,10.67404876,222.62,222.48,10.67404876]
[1734433648207,10.67404876,222.59,222.47,2.14]
[1734433648413,2.247,222.53,222.47,2.14]
[1734433648610,10.67404876,222.56,222.42,10.67404876]
[1734433648907,2.247,222.53,222.43,2.14]
[1734433649112,2.247,222.53,222.48,2.2474]
[1734433649708,2.247,222.53,222.49,2.2473]
[1734433650006,2.2469,222.54,222.45,10.67404876]
[1734433650817,2.2469,222.54,222.5,2.2472]
[1734433651014,2.247,222.53,222.48,2.14]
[1734433651416,2.247,222.53,222.49,2.2473]
[1734433652614,2.2473,222.51,222.47,2.2475]
[1734433653112,10.67404876,222.56,222.47,2.2475]
[1734433653416,2.2473,222.5,222.46,2.2476]
[1734433654515,10.67404876,222.56,222.45,2.14]
[1734433654715,10.67404876,222.56,222.47,2.2475]
[1734433655115,2.2468,222.55,222.51,2.2471]
[1734433655611,2.14,222.57,222.51,2.2471]
[1734433656018,2.14,222.57,222.45,12.81404876]
[1734433656019,2.14,222.57,222.5,2.2472]
[1734433656219,4.4958,222.58,222.5,2.14]
[1734433656409,1.4776,222.58,222.5,2.14]
[1734433656608,19.02151005,222.74,222.51,10.67404876]
[1734433656609,5.1497,222.65,222.51,10.67404876]
[1734433656814,3.0097,222.65,222.51,10.67404876]
[1734433657217,5.30790132,222.64,222.55,2.2467]
[1734433657418,5.30790132,222.64,222.55,4.3867]
[1734433657619,2.2465,222.58,222.55,2.14]
[1734433657913,10.67404876,222.63,222.52,2.14]
[1734433658114,1.5586,222.62,222.52,2.14]
[1734433658410,2.2467,222.56,222.51,2.2471]
[1734433658816,2.2467,222.56,222.49,2.14]
[1734433658817,2.2466,222.57,222.53,2.2469]
[1734433659217,2.14,222.61,222.49,2.14]
[1734433659419,2.14,222.61,222.5,4.71274936]
[1734433659624,2.14,222.61,222.49,2.14]
[1734433659813,2.14,222.61,222.5,6.8527354]
[1734433659814,2.2467,222.56,222.5,6.8527354]
[1734433660017,2.14,222.61,222.5,2.14]
[1734433660412,2.2467,222.56,222.5,2.14]
[1734433660818,2.14,222.61,222.5,2.14]
[1734433661013,2.2465,222.58,222.54,2.2468]
[1734433662617,2.2466,222.57,222.53,2.2469]
[1734433663330,2.2464,222.59,222.5,2.14]
[1734433663624,2.2464,222.59,222.51,4.71886392]
[1734433663822,2.2464,222.59,222.54,2.2468]
[1734433664630,2.2465,222.58,222.54,2.2468]
[1734433665722,1.5586,222.62,222.52,2.247]
[1734433666027,10.67404876,222.61,222.52,2.247]
[1734433666427,10.67404876,222.61,222.5,2.14]
[1734433666729,10.67404876,222.61,222.53,2.247]
[1734433667126,2.2467,222.56,222.53,2.247]
[1734433668433,2.2467,222.56,222.35,14.31972742]
[1734433668434,10.67404876,222.55,222.34,14.31972742]
[1734433668737,10.67404876,222.51,222.38,4.72820013]
[1734433669028,10.67404876,222.48,222.4,2.2483]
[1734433669233,10.67404876,222.48,222.41,4.72820013]
[1734433669427,10.67404876,222.48,222.42,4.72820013]
[1734433669626,10.67404876,222.48,222.4,2.2483]
[1734433669835,10.67404876,222.48,222.41,4.73106154]
[1734433670127,10.67404876,222.48,222.4,2.2483]
[1734433670330,10.67404876,222.48,222.41,4.72882346]
[1734433670527,1.5789,222.5,222.42,15.40276995]
[1734433670828,1.5789,222.5,222.43,4.72872119]
[1734433671134,1.5789,222.5,222.44,4.72872119]
[1734433671331,1.5789,222.5,222.46,2.2476]
[1734433671634,1.5298,222.54,222.47,4.72872119]
[1734433671833,1.5298,222.54,222.45,10.67404876]
[1734433671834,1.5298,222.54,222.48,4.72872119]
[1734433672032,1.5298,222.54,222.49,4.72872119]
[1734433672226,2.2468,222.55,222.51,2.2471]
[1734433672428,2.14,222.59,222.51,2.2471]
[1734433672831,10.67404876,222.6,222.48,10.67404876]
[1734433673038,12.81404876,222.6,222.49,4.72685755]
[1734433673233,12.81404876,222.6,222.53,2.2469]
[1734433673234,2.2466,222.57,222.53,2.2469]
[1734433673533,2.2466,222.57,222.48,10.67404876]
[1734433673730,2.2466,222.57,222.49,4.72684148]
[1734433674129,2.2466,222.57,222.52,2.247]
[1734433674332,2.2466,222.57,222.53,4.72684148]
[1734433674535,2.2466,222.57,222.54,4.72684148]
[1734433674834,2.2466,222.57,222.48,10.67404876]
[1734433675031,2.2466,222.57,222.53,2.247]
[1734433675235,2.2466,222.57,222.54,4.72686096]
[1734433675536,2.2466,222.57,222.53,2.247]
[1734433675736,2.2466,222.57,222.54,4.72684286]
[1734433675935,2.2466,222.57,222.53,2.247]
[1734433676136,2.2466,222.57,222.54,4.72686039]
[1734433676337,2.2466,222.57,222.53,2.247]
[1734433676538,2.2466,222.57,222.54,4.72685369]
[1734433676738,2.2466,222.57,222.53,2.247]
[1734433676938,2.2466,222.57,222.54,4.72686584]
[1734433677141,2.2466,222.57,222.53,2.247]
[1734433677440,2.2465,222.58,222.54,6.97365675]
[1734433677629,2.2465,222.58,222.54,2.2468]
[1734433679834,2.2465,222.58,222.55,4.72669202]
[1734433680033,2.2465,222.58,222.54,2.2468]
[1734433680239,2.2465,222.58,222.55,4.72665406]
[1734433680434,2.2465,222.58,222.54,2.2468]
[1734433681040,2.2465,222.58,222.55,4.72707049]
[1734433681244,2.2465,222.58,222.54,2.2468]
[1734433681541,2.2465,222.58,222.55,4.72762987]
[1734433681738,2.2465,222.58,222.54,2.2468]
[1734433681940,2.2465,222.58,222.55,4.72751572]
[1734433682139,2.2465,222.58,222.54,2.2468]
[1734433682341,2.2465,222.58,222.55,4.72808754]
[1734433682549,2.2465,222.58,222.54,2.2468]
[1734433682941,2.2465,222.58,222.55,4.72797537]
[1734433683139,2.2465,222.58,222.54,2.2468]
[1734433683340,2.2465,222.58,222.55,4.72812098]
[1734433683643,2.2465,222.58,222.54,2.2468]
[1734433683836,2.2465,222.58,222.55,4.7280586]
[1734433684143,10.67404876,222.6,222.49,2.14]
[1734433684342,10.67404876,222.6,222.5,4.72868037]
[1734433684545,2.2468,222.55,222.51,4.72868037]
[1734433684742,2.2468,222.55,222.52,4.72868037]
[1734433685044,2.2468,222.55,222.5,2.2472]
[1734433685539,2.2468,222.55,222.47,2.14]
[1734433685737,2.2469,222.54,222.47,2.14]
[1734433685942,2.14,222.57,222.48,4.72923121]
[1734433686245,2.247,222.53,222.49,6.97653121]
[1734433686436,2.247,222.53,222.49,2.2473]
[1734433687346,2.14,222.57,222.5,2.2472]
[1734433687347,2.2469,222.54,222.5,2.2472]
[1734433687546,1.4454,222.62,222.48,10.67404876]
[1734433687747,3.5854,222.62,222.49,4.72877637]
[1734433687943,2.2465,222.58,222.54,2.2468]
[1734433688847,2.2465,222.58,222.55,2.2467]
[1734433689144,1.4454,222.62,222.52,2.14]
[1734433689357,1.4454,222.62,222.53,4.72788943]
[1734433689554,3.6915,222.62,222.58,2.2464]
[1734433690555,2.2462,222.61,222.58,2.2464]
[1734433690953,1.4454,222.62,222.58,2.2464]
[1734433691250,3.6915,222.62,222.59,2.2463]
[1734433692451,3.6915,222.62,222.58,2.2464]
[1734433693047,3.6915,222.62,222.52,2.14]
[1734433693048,1.5789,222.63,222.57,2.14]
[1734433693254,2.2458,222.65,222.58,4.72477539]
[1734433693454,2.2458,222.65,222.59,4.72477539]
[1734433693758,2.2458,222.65,222.6,4.72477539]
[1734433694057,2.2458,222.65,222.61,4.72356026]
[1734433694257,2.2458,222.65,222.57,2.14]
[1734433694456,2.2458,222.65,222.61,2.2461]
[1734433694851,2.2457,222.66,222.6,2.2462]
[1734433695166,2.2457,222.66,222.61,4.72224881]
[1734433695354,1.5961,222.67,222.57,2.14]
[1734433695555,1.5961,222.67,222.64,2.2458]
[1734433696253,2.2453,222.7,222.66,2.2456]
[1734433697057,2.2453,222.7,222.64,2.2457]
[1734433698156,2.2454,222.69,222.64,2.2457]
[1734433698859,2.2454,222.69,222.65,2.2457]
[1734433699161,2.2455,222.68,222.63,2.14]
[1734433699358,16.1027614,222.71,222.62,2.246]
[1734433699756,2.2455,222.67,222.62,2.246]
[1734433699958,2.2455,222.67,222.63,2.2459]
[1734433700760,2.2454,222.69,222.64,2.2458]
[1734433701157,16.1027614,222.71,222.64,2.2458]
[1734433701354,2.2454,222.69,222.64,2.2458]
[1734433701662,5.42871264,222.71,222.66,2.2456]
[1734433701858,2.2453,222.7,222.66,2.2456]
[1734433702255,5.42871264,222.71,222.6,12.81404876]
[1734433702455,2.2453,222.69,222.6,12.81404876]
[1734433702861,2.2453,222.69,222.64,2.2458]
[1734433704768,2.2456,222.67,222.62,2.246]
[1734433705164,16.1027614,222.71,222.62,2.246]
[1734433706466,1.564,222.7,222.62,2.246]
[1734433707861,2.2457,222.66,222.62,2.246]
[1734433708064,10.67404876,222.68,222.6,2.2462]
[1734433708268,10.67404876,222.68,222.58,2.14]
[1734433709273,10.67404876,222.68,222.59,2.2463]
[1734433709972,2.2459,222.64,222.59,2.2463]
[1734433712365,2.14,222.64,222.46,33.99706645]
[1734433712672,10.67404876,222.59,222.47,4.70925735]
[1734433712869,2.14,222.58,222.48,4.70925735]
[1734433713071,2.14,222.58,222.49,4.70925735]
[1734433713375,2.14,222.58,222.44,10.67404876]
[1734433713573,2.2469,222.54,222.48,2.2474]
[1734433713974,2.2469,222.54,222.47,6.82978739]
[1734433714183,6.82978739,222.57,222.49,6.82978739]
[1734433715675,8.96978739,222.59,222.51,6.82978739]
[1734433715979,2.14,222.59,222.48,2.14]
[1734433716175,2.2467,222.56,222.51,2.2471]
[1734433718379,2.2468,222.55,222.51,2.2471]
[1734433718772,2.2467,222.56,222.48,2.14]
[1734433718973,2.14,222.59,222.52,2.247]
[1734433719176,10.6681607,222.61,222.52,2.247]
[1734433719376,2.2466,222.57,222.52,2.247]
[1734433719779,3.59,222.62,222.54,2.2469]
[1734433720775,2.2464,222.59,222.54,2.2469]
[1734433721674,10.6681607,222.61,222.46,10.6681607]
[1734433721882,10.6681607,222.58,222.47,6.855439]
[1734433722071,10.6681607,222.58,222.43,5.31689854]
[1734433722072,12.8081607,222.58,222.48,4.715439]
[1734433722274,12.8081607,222.58,222.46,2.14]
[1734433722482,2.247,222.53,222.48,2.2474]
[1734433725881,2.247,222.53,222.47,2.14]
[1734433725882,2.247,222.53,222.49,2.2474]
[1734433727389,10.6681607,222.55,222.46,2.2476]
[1734433727582,1.4616,222.54,222.46,2.2476]
[1734433727788,1.4616,222.54,222.4,12.1840607]
[1734433727984,10.6681607,222.52,222.39,1.5778]
[1734433728196,10.6681607,222.52,222.4,2.14]
[1734433728387,2.2478,222.45,222.4,4.3882]
[1734433728891,2.2478,222.45,222.4,2.14]
[1734433729092,2.2478,222.45,222.39,2.14]
[1734433729886,2.2478,222.45,222.41,2.2481]
[1734433730091,2.2478,222.45,222.39,2.14]
[1734433730092,2.2476,222.47,222.39,2.14]
[1734433730286,10.6681607,222.52,222.39,2.14]
[1734433730492,10.6681607,222.52,222.42,2.2481]
[1734433730692,2.2474,222.49,222.42,2.2481]
[1734433730989,10.6681607,222.52,222.43,2.2479]
[1734433731190,2.2473,222.5,222.43,2.2479]
[1734433731390,10.6681607,222.52,222.43,2.2479]
[1734433732194,2.2475,222.48,222.43,2.2479]
[1734433732796,2.2475,222.48,222.41,2.2481]
[1734433732997,2.2475,222.48,222.39,2.14]
[1734433733398,2.2475,222.48,222.43,2.2479]
[1734433737598,2.2476,222.47,222.43,2.2479]
[1734433740900,2.2475,222.48,222.44,2.2478]
[1734433741204,6.83326034,222.51,222.43,6.83326034]
[1734433741702,2.2474,222.49,222.43,6.83326034]
[1734433742204,2.2474,222.49,222.45,2.2477]
[1734433742903,2.2474,222.49,222.43,6.83326034]
[1734433743100,2.2473,222.5,222.46,2.2476]
[1734433743699,6.94144222,222.53,222.45,6.83326034]
[1734433743901,8.29486034,222.54,222.47,6.83326034]
[1734433744100,1.4616,222.54,222.49,6.83326034]
[1734433744304,3.7085,222.54,222.5,2.2472]
[1734433745698,2.2466,222.57,222.51,6.83326034]
[1734433746799,2.2468,222.55,222.51,6.83326034]
[1734433747001,2.2468,222.55,222.48,2.14]
[1734433747002,6.83326034,222.55,222.48,2.14]
[1734433747500,5.28099284,222.58,222.51,6.83326034]
[1734433747908,12.11425318,222.58,222.51,6.83326034]
[1734433748604,14.36075318,222.58,222.53,2.2469]
[1734433748806,1.4947,222.61,222.53,6.83326034]
[1734433749006,3.7409,222.61,222.56,2.2466]
[1734433749302,9.83996034,222.62,222.55,6.83326034]
[1734433749303,6.83326034,222.62,222.55,6.83326034]
[1734433750104,9.07936034,222.62,222.57,2.2465]
[1734433752002,6.83326034,222.62,222.59,2.2463]
[1734433753109,6.83326034,222.62,222.57,2.2465]
[1734433753305,6.83326034,222.62,222.55,6.83326034]
[1734433754512,6.83326034,222.62,222.59,2.2463]
[1734433755005,2.246,222.63,222.6,2.2462]
[1734433756709,9.07916034,222.64,222.6,2.2462]
[1734433758508,6.83326034,222.64,222.6,2.2462]
[1734433758801,11.48656034,222.68,222.61,6.83326034]